fUST/lending_fUST_20240201
["ID","MTS","AMOUNT","RATE_DAILY","PERIOD"]
[313113672,1706763040188,-500.0,0.00021347,2]
[313113673,1706763040198,-833.32,0.00021347,2]
[313113674,1706763040207,-1351.73,0.00021347,2]
[313113675,1706763040217,-500.0,0.00021447,2]
[313113676,1706763040226,-500.0,0.00021447,2]
[313113677,1706763040236,-589.99,0.0002162,2]
[313113678,1706763040245,-500.0,0.00021621,2]
[313113679,1706763040254,-500.0,0.00021621,2]
[313113680,1706763040264,-735.63,0.00021621,2]
[313113681,1706763040273,-1065.46,0.00021621,2]
[313113682,1706763040282,-500.0,0.00021621,2]
[313113683,1706763040291,-500.0,0.00021621,2]
[313113684,1706763040300,-500.0,0.00021621,2]
[313113685,1706763040309,-833.32,0.00021621,2]
[313113686,1706763040319,-1351.73,0.00021621,2]
[313113687,1706763040328,-500.0,0.00021721,2]
[313113688,1706763040337,-500.0,0.00021721,2]
[313113689,1706763040346,-3000.0,0.000218,2]
[313113690,1706763040355,-589.99,0.00021894,2]
[313113691,1706763040365,-500.0,0.00021895,2]
[313113692,1706763040375,-500.0,0.00021895,2]
[313113693,1706763040388,-735.63,0.00021895,2]
[313113694,1706763040397,-1065.46,0.00021895,2]
[313113695,1706763040407,-574.96158171,0.00021895,2]
[313113696,1706763040416,-500.0,0.00021895,2]
[313113697,1706763040425,-500.0,0.00021895,2]
[313113698,1706763040434,-833.32,0.00021895,2]
[313113699,1706763040443,-1351.73,0.00021895,2]
[313113700,1706763040454,-166.666666,0.00021918,2]
[313113701,1706763040465,-500.0,0.00021995,2]
[313113702,1706763040475,-500.0,0.00021995,2]
[313113703,1706763040484,-2037.9288444,0.00022,2]
[313113704,1706763040494,-426.74292046,0.00022,2]
[313113705,1706763040503,-3975.94482734,0.00022,2]
[313113706,1706763040512,-327.87136116,0.00022,2]
[313113707,1706763040521,-589.99,0.00022168,2]
[313113708,1706763040530,-500.0,0.00022169,2]
[313113709,1706763040539,-500.0,0.00022169,2]
[313113710,1706763040548,-735.63,0.00022169,2]
[313113711,1706763040556,-1065.46,0.00022169,2]
[313113712,1706763040566,-500.0,0.00022169,2]
[313113713,1706763040575,-500.0,0.00022169,2]
[313113714,1706763040585,-833.32,0.00022169,2]
[313113715,1706763040594,-1351.73,0.00022169,2]
[313113716,1706763040603,-500.0,0.00022269,2]
[313113717,1706763040612,-500.0,0.00022269,2]
[313113720,1706763040621,-166.666666,0.00022431,2]
[313113722,1706763040630,-589.99,0.00022442,2]
[313113723,1706763040639,-500.0,0.00022443,2]
[313113724,1706763040648,-500.0,0.00022443,2]
[313113725,1706763040657,-735.63,0.00022443,2]
[313113726,1706763040666,-1065.46,0.00022443,2]
[313113727,1706763040676,-500.0,0.00022443,2]
[313113729,1706763040685,-217.57934236,0.00022443,2]
[313113730,1706763040694,-833.32,0.00022443,2]
[313113731,1706763040704,-1351.73,0.00022443,2]
[313113732,1706763040714,-500.0,0.00022543,2]
[313113733,1706763040723,-500.0,0.00022543,2]
[313113734,1706763040732,-589.99,0.00022716,2]
[313113735,1706763040741,-500.0,0.00022717,2]
[313113736,1706763040750,-500.0,0.00022717,2]
[313113737,1706763040760,-735.63,0.00022717,2]
[313113738,1706763040769,-1065.46,0.00022717,2]
[313113739,1706763040778,-500.0,0.00022717,2]
[313113740,1706763040787,-833.32,0.00022717,2]
[313113741,1706763040796,-1351.73,0.00022717,2]
[313113743,1706763040805,-618.07510336,0.00022817,2]
[313113744,1706763040814,-500.0,0.00022817,2]
[313113745,1706763040823,-3632.68295481,0.000229,2]
[313113746,1706763040832,-166.666666,0.00022944,2]
[313113747,1706763040841,-589.99,0.0002299,2]
[313113748,1706763040850,-500.0,0.00022991,2]
[313113749,1706763040859,-507.51925752,0.00022991,2]
[313113750,1706763040868,-735.63,0.00022991,2]
[313113751,1706763040877,-1065.46,0.00022991,2]
[313113752,1706763040886,-382.17927722,0.00022991,2]
[313113753,1706763040895,-833.32,0.00022991,2]
[313113755,1706763040904,-1351.73,0.00022991,2]
[313113757,1706763040913,-1261.69149652,0.00023,2]
[313113759,1706763040923,-19111.12484416,0.00023,2]
[313113761,1706763040932,-500.0,0.00023091,2]
[313113763,1706763040941,-589.99,0.00023264,2]
[313113765,1706763040951,-500.0,0.00023265,2]
[313113767,1706763040961,-735.63,0.00023265,2]
[313113769,1706763040970,-1065.46,0.00023265,2]
[313113774,1706763040980,-833.32,0.00023265,2]
[313113775,1706763041072,-1351.73,0.00023265,2]
[313113776,1706763041082,-166.666666,0.00023456,2]
[313113777,1706763041092,-589.99,0.00023538,2]
[313113778,1706763041101,-500.0,0.00023539,2]
[313113779,1706763041110,-735.63,0.00023539,2]
[313113780,1706763041120,-1065.46,0.00023539,2]
[313113781,1706763041129,-833.32,0.00023539,2]
[313113782,1706763041139,-1351.73,0.00023539,2]
[313113783,1706763041148,-589.99,0.00023812,2]
[313113784,1706763041157,-500.0,0.00023813,2]
[313113785,1706763041166,-735.63,0.00023813,2]
[313113786,1706763041176,-1065.46,0.00023813,2]
[313113787,1706763041185,-833.32,0.00023813,2]
[313113788,1706763041195,-1351.73,0.00023813,2]
[313113789,1706763041204,-166.666666,0.00023969,2]
[313113790,1706763041214,-4021.82810121,0.00024,2]
[313113791,1706763041223,-589.99,0.00024086,2]
[313113792,1706763041231,-500.0,0.00024087,2]
[313113793,1706763041241,-735.63,0.00024087,2]
[313113794,1706763041250,-1065.46,0.00024087,2]
[313113795,1706763041259,-833.32,0.00024087,2]
[313113796,1706763041269,-1351.73,0.00024087,2]
[313113797,1706763041277,-160.09709862,0.000243,2]
[313113798,1706763041287,-589.99,0.0002436,2]
[313113799,1706763041296,-390.76318522,0.00024361,2]
[313113800,1706763041305,-735.63,0.00024361,2]
[313113801,1706763041314,-1065.46,0.00024361,2]
[313113802,1706763041323,-833.32,0.00024361,2]
[313113803,1706763041332,-1351.73,0.00024361,2]
[313113804,1706763041341,-166.666666,0.00024482,2]
[313113805,1706763041350,-589.99,0.00024634,2]
[313113806,1706763041360,-735.63,0.00024635,2]
[313113807,1706763041368,-1065.46,0.00024635,2]
[313113808,1706763041378,-833.32,0.00024635,2]
[313113809,1706763041391,-1351.73,0.00024635,2]
[313113810,1706763041400,-161.93398486,0.00024855,2]
[313113811,1706763041409,-525.48562854,0.00024855,2]
[313113812,1706763041418,-1000.0,0.00024855,3]
[313113813,1706763041428,-1000.0,0.00024855,3]
[313113814,1706763041437,-589.99,0.00024908,2]
[313113815,1706763041448,-735.63,0.00024909,2]
[313113816,1706763041458,-1065.46,0.00024909,2]
[313113817,1706763041467,-833.32,0.00024909,2]
[313113818,1706763041476,-1351.73,0.00024909,2]
[313113819,1706763041485,-499.42473756,0.0002496,5]
[313113820,1706763041495,-1830.14346345,0.00025,2]
[313113821,1706763041505,-1026.08287796,0.00025,2]
[313113823,1706763041514,-4732.83381239,0.00025,2]
[313113824,1706763041523,-155.01550155,0.00025,2]
[313113825,1706763041533,-168.88418216,0.00025,2]
[313113826,1706763041542,-155.01550155,0.00025,2]
[313113827,1706763041552,-8700.1390739,0.00025,2]
[313113828,1706763041561,-589.99,0.00025182,2]
[313113830,1706763041571,-735.63,0.00025183,2]
[313113831,1706763041581,-1065.46,0.00025183,2]
[313113832,1706763041590,-833.32,0.00025183,2]
[313113833,1706763041599,-1351.73,0.00025183,2]
[313113834,1706763041608,-222.82766287,0.000252,2]
[313113835,1706763041618,-500.0,0.00025293,2]
[313113837,1706763041627,-500.0,0.00025293,2]
[313113839,1706763041636,-500.0,0.00025293,2]
[313113840,1706763041645,-171.39595961,0.00025293,2]
[313113841,1706763041654,-500.0,0.00025293,2]
[313113842,1706763041663,-500.0,0.00025293,2]
[313113843,1706763041673,-500.0,0.00025293,2]
[313113844,1706763041682,-500.0,0.00025293,2]
[313113846,1706763041691,-500.0,0.00025293,2]
[313113847,1706763041701,-615.46639729,0.00025293,2]
[313113848,1706763041711,-500.0,0.00025293,2]
[313113849,1706763041720,-214.11458046,0.00025293,2]
[313113850,1706763041729,-500.0,0.00025293,2]
[313113851,1706763041738,-287.3034547,0.00025293,2]
[313113852,1706763041747,-500.0,0.00025293,2]
[313113853,1706763041756,-500.0,0.00025293,2]
[313113854,1706763041765,-522.55434682,0.00025293,2]
[313113855,1706763041774,-500.0,0.00025293,2]
[313113856,1706763041783,-500.0,0.00025293,2]
[313113857,1706763041793,-500.0,0.00025293,2]
[313113858,1706763041802,-500.0,0.00025293,2]
[313113859,1706763041811,-500.0,0.00025293,2]
[313113860,1706763041820,-473.96714372,0.00025293,2]
[313113861,1706763041830,-500.0,0.00025293,2]
[313113862,1706763041839,-500.0,0.00025293,2]
[313113863,1706763041848,-500.0,0.00025293,2]
[313113864,1706763041857,-500.0,0.00025293,2]
[313113865,1706763041866,-500.0,0.00025293,2]
[313113866,1706763041876,-500.0,0.00025293,2]
[313113867,1706763041885,-500.0,0.00025293,2]
[313113868,1706763041894,-500.0,0.00025293,2]
[313113869,1706763041904,-500.0,0.00025293,2]
[313113870,1706763041914,-500.0,0.00025293,2]
[313113871,1706763041923,-500.0,0.00025293,2]
[313113872,1706763041933,-500.0,0.00025293,2]
[313113873,1706763041942,-500.0,0.00025293,2]
[313113874,1706763041952,-500.0,0.00025293,2]
[313113875,1706763041962,-363.56926825,0.00025293,2]
[313113876,1706763041972,-500.0,0.00025293,2]
[313113877,1706763041982,-500.0,0.00025293,2]
[313113878,1706763041991,-500.0,0.00025293,2]
[313113879,1706763042000,-500.0,0.00025293,2]
[313113880,1706763042010,-500.0,0.00025293,2]
[313113881,1706763042019,-500.0,0.00025293,2]
[313113882,1706763042030,-500.0,0.00025293,2]
[313113883,1706763042039,-500.0,0.00025293,2]
[313113884,1706763042048,-500.0,0.00025293,2]
[313113885,1706763042057,-500.0,0.00025293,2]
[313113886,1706763042067,-500.0,0.00025293,2]
[313113887,1706763042077,-500.0,0.00025293,2]
[313113888,1706763042087,-500.0,0.00025293,2]
[313113889,1706763042097,-500.0,0.00025293,2]
[313113890,1706763042106,-500.0,0.00025293,2]
[313113891,1706763042116,-1584.57551026,0.00025296,2]
[313113892,1706763042126,-7306.55699233,0.00025297,2]
[313113893,1706763042135,-335.59984045,0.00025297,2]
[313113894,1706763042145,-685.29221933,0.00025297,2]
[313113895,1706763042154,-300.0,0.00025297,2]
[313113896,1706763042163,-343.67151097,0.00025297,2]
[313113897,1706763042173,-2088.24989888,0.00025297,2]
[313113898,1706763042183,-6138.13119635,0.00025297,2]
[313113899,1706763042192,-338.88993322,0.00025297,2]
[313113900,1706763042204,-765.31228105,0.00025297,2]
[313113901,1706763042213,-1829.31848174,0.00025297,2]
[313113902,1706763042222,-155.01395126,0.00025297,2]
[313113903,1706763042231,-284860.37823719,0.00025297,7]
[313113904,1706763042240,-300.0,0.000253,12]
[313113905,1706763042250,-589.99,0.00025456,2]
[313113906,1706763042259,-735.63,0.00025457,2]
[313113907,1706763042269,-1065.46,0.00025457,2]
[313113908,1706763042279,-833.32,0.00025457,2]
[313113909,1706763042288,-1351.73,0.00025457,2]
[313113910,1706763042297,-600.0,0.000255,2]
[313113911,1706763042307,-589.99,0.0002573,2]
[313113912,1706763042317,-735.63,0.00025731,2]
[313113913,1706763042326,-1065.46,0.00025731,2]
[313113914,1706763042335,-833.32,0.00025731,2]
[313113915,1706763042345,-1351.73,0.00025731,2]
[313113916,1706763042354,-621.12474548,0.00025877,2]
[313113917,1706763042364,-151.0,0.0002597,2]
[313113918,1706763042374,-4315.1928825,0.00026,2]
[313113919,1706763042386,-600.0,0.00026,2]
[313113920,1706763042395,-241.72862398,0.00026,2]
[313113921,1706763042405,-1863.56960394,0.00026,3]
[313113922,1706763042505,-3828.93419489,0.00026,3]
[313113923,1706763042514,-586.9729561,0.00026,3]
[313113924,1706763042524,-589.99,0.00026004,2]
[313113925,1706763042534,-735.63,0.00026005,2]
[313113926,1706763042543,-1065.46,0.00026005,2]
[313113927,1706763042552,-833.32,0.00026005,2]
[313113928,1706763042562,-1351.73,0.00026005,2]
[313113929,1706763042571,-306.8078246,0.00026027,2]
[313113930,1706763042581,-153.0,0.00026027,2]
[313113931,1706763042590,-212.433075,0.00026027,2]
[313113932,1706763042599,-306.542544,0.00026027,2]
[313113933,1706763042608,-154.000139,0.00026027,2]
[313113934,1706763042617,-153.0,0.00026027,2]
[313113935,1706763042626,-153.6600109,0.00026027,2]
[313113936,1706763042635,-399.7626716,0.00026027,2]
[313113937,1706763042645,-199.6652776,0.00026027,2]
[313113938,1706763042654,-199.6652776,0.00026027,2]
[313113939,1706763042663,-590.05,0.00026278,2]
[313113940,1706763042673,-735.75491658,0.00026279,2]
[313113941,1706763042682,-1065.66760645,0.00026279,2]
[313113942,1706763042691,-833.34826501,0.00026279,2]
[313113943,1706763042702,-1351.8513216,0.00026279,2]
[313113944,1706763042711,-600.0,0.000265,2]
[313113945,1706763042720,-151.0,0.00026646,2]
[313113946,1706763042729,-300.0,0.000268,12]
[313113947,1706763042738,-15442.50025586,0.00026995,2]
[313113948,1706763042793,-5354.69,0.00023255,3]
[313113949,1706763042803,-17822.42091754,0.00026995,2]
[313113950,1706763042812,-1000.0,0.00027,27]
[313113951,1706763042821,-600.0,0.00027,2]
[313113952,1706763042830,-2177.68106252,0.00027,3]
[313113953,1706763042840,-23091.5008408,0.0002707,2]
[313114063,1706763049639,-245.61737372,0.00021345,2]
[313114065,1706763049648,-293.52293363,0.00021346,2]
[313114067,1706763049657,-155.0,0.00027069,2]
[313114068,1706763049666,-9114.69452618,0.0002707,2]
[313114082,1706763441174,8955.0,0.00028483,61]
[313114083,1706763441269,150.5,0.00028483,61]
[313114084,1706763441422,153.15,0.00028483,61]
[313114085,1706763441606,8955.0,0.00028473,61]
[313114086,1706763441695,154.17,0.00028473,61]
[313114087,1706763442136,8955.0,0.00028463,61]
[313114088,1706763442816,150.5,0.00028483,61]
[313114089,1706763443065,150.5,0.00028483,61]
[313114090,1706763443091,11231.0,0.00028483,61]
[313114091,1706763443235,1000.0,0.00028483,61]
[313114092,1706763443262,7645.0,0.00028483,61]
[313114093,1706763443289,172.32,0.00028473,61]
[313114094,1706763443549,256.0,0.00028473,61]
[313114095,1706763443578,11231.0,0.00028473,61]
[313114096,1706763443693,7645.0,0.00028473,61]
[313114097,1706763443727,1000.0,0.00028473,61]
[313114098,1706763444009,11231.0,0.00028463,61]
[313114099,1706763444130,7645.0,0.00028463,61]
[313114100,1706763444165,1000.0,0.00028463,61]
[313114102,1706763561533,1000.0,0.00028483,61]
[313114103,1706763561972,1000.0,0.00028473,61]
[313114104,1706763562417,1000.0,0.00028463,61]
[313114105,1706763622334,7862.0,0.00028483,61]
[313114106,1706763622779,7862.0,0.00028473,61]
[313114107,1706763623233,7862.0,0.00028463,61]
[313114108,1706763681222,700.0,0.00028483,61]
[313114109,1706763681657,700.0,0.00028473,61]
[313114110,1706763682096,700.0,0.00028463,61]
[313114111,1706763682888,5352.0,0.00028483,61]
[313114112,1706763683331,5352.0,0.00028473,61]
[313114113,1706763683799,5352.0,0.00028463,61]
[313114115,1706763801070,204.0,0.00028483,61]
[313114116,1706763801490,150.5,0.00028483,61]
[313114117,1706763801517,5503.0,0.00028483,61]
[313114118,1706763801579,6269.0,0.00028483,61]
[313114119,1706763801608,204.0,0.00028473,61]
[313114120,1706763801929,5503.0,0.00028473,61]
[313114121,1706763801955,150.5,0.00028473,61]
[313114122,1706763802042,6269.0,0.00028473,61]
[313114123,1706763802069,204.0,0.00028463,61]
[313114124,1706763802369,5503.0,0.00028463,61]
[313114125,1706763802398,150.5,0.00028463,61]
[313114126,1706763802494,6269.0,0.00028463,61]
[313114129,1706763861624,171.0,0.00028483,61]
[313114130,1706763862051,171.0,0.00028473,61]
[313114131,1706763862079,150.5,0.00028483,61]
[313114132,1706763862239,400.0,0.00028483,61]
[313114133,1706763862490,171.0,0.00028463,61]
[313114134,1706763862516,150.5,0.00028473,61]
[313114135,1706763862695,400.0,0.00028473,61]
[313114136,1706763862956,150.5,0.00028463,61]
[313114137,1706763863165,400.0,0.00028463,61]
[313114138,1706763921264,190.0,0.00028483,61]
[313114139,1706763921367,3852.0,0.00028483,61]
[313114140,1706763921711,190.0,0.00028473,61]
[313114141,1706763921792,3852.0,0.00028473,61]
[313114142,1706763922218,190.0,0.00028463,61]
[313114143,1706763922475,3852.0,0.00028463,61]
[313114144,1706763923024,3746.0,0.00028483,61]
[313114145,1706763923478,3746.0,0.00028473,61]
[313114146,1706763923907,3746.0,0.00028463,61]
[313114150,1706764041635,150.5,0.00028483,61]
[313114151,1706764041692,198.0,0.00028483,61]
[313114152,1706764042082,150.5,0.00028473,61]
[313114153,1706764042140,198.0,0.00028473,61]
[313114154,1706764042511,150.5,0.00028463,61]
[313114155,1706764044555,198.0,0.00028463,61]
[313114156,1706764101898,2697.0,0.00028483,61]
[313114157,1706764102295,2697.0,0.00028473,61]
[313114158,1706764102742,2697.0,0.00028463,61]
[313114160,1706764161651,2623.0,0.00028483,61]
[313114161,1706764162099,2623.0,0.00028473,61]
[313114162,1706764162643,4388.0,0.00028483,61]
[313114163,1706764162802,1189.15062574,0.00028463,61]
[313114164,1706764162826,1433.84937426,0.00028463,61]
[313114165,1706764163076,4388.0,0.00028473,61]
[313114166,1706764163511,4388.0,0.00028463,61]
[313114188,1706764231666,-155.0,0.00018552,3]
[313114190,1706764231675,-15645.61218582,0.00018552,2]
[313114191,1706764231684,-1652.12287354,0.00018553,2]
[313114193,1706764231693,-1775.26466003,0.00018553,2]
[313114195,1706764231702,-13285.7057135,0.00018554,2]
[313114196,1706764231711,-530.9506864,0.00018733,2]
[313114197,1706764231720,-274.714176,0.00018834,2]
[313114198,1706764231729,-1585.15053624,0.00019,2]
[313114199,1706764231738,-169.176019,0.00019178,2]
[313114200,1706764231752,-165.55540842,0.00019876,2]
[313114201,1706764231762,-500.0,0.00019976,2]
[313114202,1706764231772,-500.0,0.00019976,2]
[313114203,1706764231781,-500.0,0.00019977,2]
[313114204,1706764231791,-500.0,0.00019977,2]
[313114205,1706764231800,-500.0,0.00019977,2]
[313114207,1706764231809,-500.0,0.00019977,2]
[313114209,1706764231818,-453.46449264,0.00019977,2]
[313114211,1706764231829,-500.0,0.00019977,2]
[313114212,1706764231838,-1200.31274669,0.0002,2]
[313114214,1706764231847,-680.01303789,0.00020238,2]
[313114216,1706764231856,-7354.49,0.00020239,3]
[313114217,1706764231865,-272.87948714,0.00020247,2]
[313114219,1706764231874,-4442.43810866,0.00020247,2]
[313114221,1706764231884,-500.0,0.00020248,2]
[313114223,1706764231892,-915.31,0.00020248,2]
[313114225,1706764231901,-500.0,0.00020248,2]
[313114227,1706764231910,-500.0,0.00020248,2]
[313114229,1706764231919,-500.0,0.00020248,2]
[313114231,1706764231928,-500.0,0.00020248,2]
[313114233,1706764231937,-500.0,0.00020248,2]
[313114235,1706764231947,-466.27657632,0.00020249,2]
[313114237,1706764231956,-500.0,0.00020249,2]
[313114239,1706764231965,-500.0,0.00020249,2]
[313114242,1706764231974,-500.0,0.00020249,2]
[313114243,1706764231984,-500.0,0.00020249,2]
[313114245,1706764231993,-500.0,0.00020249,2]
[313114247,1706764232002,-500.0,0.00020249,2]
[313114249,1706764232011,-500.0,0.00020249,2]
[313114250,1706764232021,-633.85,0.00020249,2]
[313114252,1706764232030,-500.0,0.00020249,2]
[313114254,1706764232040,-500.0,0.00020249,2]
[313114255,1706764232048,-500.0,0.00020249,2]
[313114256,1706764232057,-500.0,0.00020249,2]
[313114257,1706764232067,-729.15,0.00020249,2]
[313114258,1706764232075,-500.0,0.00020249,2]
[313114259,1706764232085,-1182.76,0.00020249,2]
[313114260,1706764232094,-498.96253921,0.00020249,2]
[313114261,1706764232103,-618.07510336,0.0002025,2]
[313114262,1706764232112,-500.0,0.00020251,2]
[313114263,1706764232121,-500.0,0.00020522,2]
[313114264,1706764232131,-915.31,0.00020522,2]
[313114265,1706764232140,-500.0,0.00020522,2]
[313114266,1706764232149,-500.0,0.00020522,2]
[313114267,1706764232159,-500.0,0.00020523,2]
[313114268,1706764232168,-633.85,0.00020523,2]
[313114269,1706764232178,-500.0,0.00020523,2]
[313114270,1706764232187,-492.52543003,0.00020523,2]
[313114271,1706764232197,-500.0,0.00020523,2]
[313114272,1706764232206,-729.15,0.00020523,2]
[313114273,1706764232215,-303.97795324,0.00020523,2]
[313114311,1706764237800,-196.02204676,0.00020523,2]
[313114313,1706764237810,-1182.76,0.00020523,2]
[313114315,1706764237820,-500.0,0.00020796,2]
[313114317,1706764237830,-915.31,0.00020796,2]
[313114319,1706764237839,-500.0,0.00020796,2]
[313114321,1706764237849,-500.0,0.00020796,2]
[313114323,1706764237858,-500.0,0.00020797,2]
[313114325,1706764237867,-633.85,0.00020797,2]
[313114327,1706764237876,-500.0,0.00020797,2]
[313114329,1706764237885,-500.0,0.00020797,2]
[313114331,1706764237893,-729.15,0.00020797,2]
[313114333,1706764237902,-1182.76,0.00020797,2]
[313114335,1706764237911,-222.82766287,0.00020971,2]
[313114337,1706764237922,-5107.28,0.0002098,3]
[313114339,1706764237931,-6128.74,0.0002099,3]
[313114341,1706764237940,-205.98932295,0.00020999,2]
[313114343,1706764237949,-170.80139394,0.00020999,2]
[313114344,1706764237958,-17216.0962955,0.00021,2]
[313114345,1706764237967,-500.0,0.0002107,2]
[313114346,1706764237975,-915.31,0.0002107,2]
[313114347,1706764237984,-500.0,0.0002107,2]
[313114348,1706764237993,-500.0,0.0002107,2]
[313114349,1706764238002,-500.0,0.00021071,2]
[313114350,1706764238012,-633.85,0.00021071,2]
[313114351,1706764238021,-500.0,0.00021071,2]
[313114352,1706764238030,-500.0,0.00021071,2]
[313114353,1706764238039,-729.15,0.00021071,2]
[313114354,1706764238047,-1182.76,0.00021071,2]
[313114355,1706764238056,-2024.03473102,0.0002121,2]
[313114356,1706764238065,-465.31582252,0.0002121,2]
[313114357,1706764238073,-4714.20646247,0.0002121,2]
[313114358,1706764238082,-441.16980348,0.0002121,2]
[313114359,1706764238091,-174.4528693,0.00021343,2]
[313114360,1706764238100,-156.47903559,0.00021343,2]
[313114361,1706764238108,-330.81493432,0.00021343,2]
[313114362,1706764238117,-155.43134264,0.00021343,2]
[313114363,1706764238126,-156.64846019,0.00021343,2]
[313114364,1706764238135,-500.0,0.00021344,2]
[313114365,1706764238143,-915.31,0.00021344,2]
[313114366,1706764238152,-500.0,0.00021344,2]
[313114367,1706764238161,-500.0,0.00021344,2]
[313114368,1706764238170,-500.0,0.00021345,2]
[313114369,1706764238179,-633.85,0.00021345,2]
[313114370,1706764238187,-500.0,0.00021345,2]
[313114371,1706764238196,-500.0,0.00021345,2]
[313114372,1706764238205,-729.15,0.00021345,2]
[313114373,1706764238213,-1182.76,0.00021345,2]
[313114375,1706764238224,-500.0,0.00021618,2]
[313114377,1706764238233,-915.31,0.00021618,2]
[313114379,1706764238242,-500.0,0.00021618,2]
[313114381,1706764238251,-500.0,0.00021618,2]
[313114383,1706764238260,-500.0,0.00021619,2]
[313114385,1706764238269,-633.85,0.00021619,2]
[313114387,1706764238278,-500.0,0.00021619,2]
[313114389,1706764238287,-500.0,0.00021619,2]
[313114391,1706764238297,-729.15,0.00021619,2]
[313114393,1706764238307,-1182.76,0.00021619,2]
[313114395,1706764238316,-3000.0,0.000218,2]
[313114397,1706764238325,-4743.45,0.00021883,3]
[313114399,1706764238334,-500.0,0.00021892,2]
[313114400,1706764238342,-915.31,0.00021892,2]
[313114402,1706764238351,-500.0,0.00021892,2]
[313114404,1706764238360,-500.0,0.00021892,2]
[313114406,1706764238369,-500.0,0.00021893,2]
[313114408,1706764238379,-633.85,0.00021893,2]
[313114410,1706764238388,-574.96158171,0.00021893,2]
[313114412,1706764238397,-500.0,0.00021893,2]
[313114414,1706764238406,-729.15,0.00021893,2]
[313114416,1706764238415,-1182.76,0.00021893,2]
[313114418,1706764238424,-166.666666,0.00021918,2]
[313114420,1706764238433,-2037.9288444,0.00022,2]
[313114422,1706764238442,-3975.94482734,0.00022,2]
[313114424,1706764238451,-426.74292046,0.00022,2]
[313114426,1706764238460,-327.87136116,0.00022,2]
[313114428,1706764238469,-500.0,0.00022166,2]
[313114430,1706764238478,-915.31,0.00022166,2]
[313114432,1706764238487,-500.0,0.00022166,2]
[313114434,1706764238497,-500.0,0.00022166,2]
[313114436,1706764238506,-500.0,0.00022167,2]
[313114438,1706764238515,-633.85,0.00022167,2]
[313114440,1706764238524,-500.0,0.00022167,2]
[313114442,1706764238533,-729.15,0.00022167,2]
[313114444,1706764238542,-1182.76,0.00022167,2]
[313114445,1706764238551,-166.666666,0.00022431,2]
[313114447,1706764238560,-500.0,0.0002244,2]
[313114449,1706764238569,-915.31,0.0002244,2]
[313114451,1706764238578,-217.57934236,0.0002244,2]
[313114453,1706764238587,-500.0,0.0002244,2]
[313114455,1706764238596,-500.0,0.00022441,2]
[313114457,1706764238606,-633.85,0.00022441,2]
[313114459,1706764238615,-500.0,0.00022441,2]
[313114461,1706764238624,-729.15,0.00022441,2]
[313114464,1706764238633,-1182.76,0.00022441,2]
[313114465,1706764238642,-500.0,0.00022714,2]
[313114467,1706764238651,-915.31,0.00022714,2]
[313114469,1706764238660,-500.0,0.00022714,2]
[313114471,1706764238669,-575.23925752,0.00022715,2]
[313114474,1706764238678,-633.85,0.00022715,2]
[313114475,1706764238687,-500.0,0.00022715,2]